[Event "Early-Titled-Tuesday-Blitz-January-16-2024"]
[Site "Chess.com"]
[Date "2024.01.16"]
[Round "4"]
[White "kaanadayhamle"]
[Black "IMRosen"]
[Result "0-1"]
[WhiteElo "2401"]
[BlackElo "2654"]
[TimeControl "180+1"]
[EndTime "8:41:20 PST"]
[Termination "IMRosen won on time"]

1. Nf3 {[%clk 0:03:00.9]} 1... d5 {[%clk 0:02:59.4]} 2. d4 {[%clk 0:03:00.7]}
2... Nf6 {[%clk 0:03:00]} 3. Bg5 {[%clk 0:02:59.8]} 3... Ne4 {[%clk 0:03:00.2]}
4. Bf4 {[%clk 0:03:00.2]} 4... c5 {[%clk 0:03:00.3]} 5. dxc5 {[%clk 0:02:59.6]}
5... e6 {[%clk 0:02:53.9]} 6. e3 {[%clk 0:02:51.5]} 6... Bxc5 {[%clk 0:02:53.4]}
7. Bd3 {[%clk 0:02:51.3]} 7... O-O {[%clk 0:02:50.2]} 8. O-O {[%clk 0:02:40.2]}
8... Nc6 {[%clk 0:02:49.4]} 9. Nbd2 {[%clk 0:02:25.8]} 9... Nxd2 {[%clk
0:02:27.7]} 10. Qxd2 {[%clk 0:02:24.7]} 10... Qe7 {[%clk 0:02:27]} 11. Bg3
{[%clk 0:02:02.8]} 11... e5 {[%clk 0:02:20.9]} 12. Bb5 {[%clk 0:01:39.8]} 12...
e4 {[%clk 0:01:56.1]} 13. Nd4 {[%clk 0:01:15.6]} 13... Nxd4 {[%clk 0:01:45.1]}
14. exd4 {[%clk 0:01:15.8]} 14... Bb6 {[%clk 0:01:44]} 15. Rfe1 {[%clk
0:01:11.5]} 15... Bd7 {[%clk 0:01:37.7]} 16. Bf1 {[%clk 0:01:01.2]} 16... Rac8
{[%clk 0:01:33.9]} 17. c3 {[%clk 0:01:00.3]} 17... a6 {[%clk 0:01:21.9]} 18.
Rad1 {[%clk 0:00:42.4]} 18... Rc6 {[%clk 0:01:21.6]} 19. f3 {[%clk 0:00:34]}
19... f5 {[%clk 0:01:15.3]} 20. fxe4 {[%clk 0:00:32.4]} 20... dxe4 {[%clk
0:00:56.6]} 21. Kh1 {[%clk 0:00:23.6]} 21... Rg6 {[%clk 0:00:48.5]} 22. Be5
{[%clk 0:00:20.7]} 22... Rh6 {[%clk 0:00:30.1]} 23. Bf4 {[%clk 0:00:16.5]} 23...
Rg6 {[%clk 0:00:21.3]} 24. c4 {[%clk 0:00:14.3]} 24... Be8 {[%clk 0:00:08.2]}
25. b4 {[%clk 0:00:07.5]} 25... Bc7 {[%clk 0:00:08.3]} 26. Bxc7 {[%clk
0:00:05.8]} 26... Qxc7 {[%clk 0:00:09.2]} 27. d5 {[%clk 0:00:05.1]} 27... Ba4
{[%clk 0:00:07.2]} 28. Rc1 {[%clk 0:00:01.7]} 28... Rh6 {[%clk 0:00:06.1]} 29.
g3 {[%clk 0:00:01.2]} 29... Qxg3 {[%clk 0:00:04.5]} 0-1

[Event "Early-Titled-Tuesday-Blitz-January-16-2024"]
[Site "Chess.com"]
[Date "2024.01.16"]
[Round "4"]
[White "chito89"]
[Black "AwareIdea"]
[Result "1-0"]
[WhiteElo "2927"]
[BlackElo "2533"]
[TimeControl "180+1"]
[EndTime "8:41:20 PST"]
[Termination "chito89 won on time"]

1. d4 {[%clk 0:02:58.2]} 1... Nf6 {[%clk 0:02:58.2]} 2. c4 {[%clk 0:02:59.1]}
2... e6 {[%clk 0:02:57]} 3. Nc3 {[%clk 0:02:59.6]} 3... d5 {[%clk 0:02:56.6]} 4.
Nf3 {[%clk 0:02:59.1]} 4... Bb4 {[%clk 0:02:57.1]} 5. cxd5 {[%clk 0:02:58.8]}
5... exd5 {[%clk 0:02:56.9]} 6. Bg5 {[%clk 0:02:58.3]} 6... h6 {[%clk
0:02:57.4]} 7. Bxf6 {[%clk 0:02:57.9]} 7... Qxf6 {[%clk 0:02:57]} 8. Qa4+ {[%clk
0:02:58.4]} 8... Nc6 {[%clk 0:02:55.9]} 9. e3 {[%clk 0:02:58.9]} 9... O-O {[%clk
0:02:51.9]} 10. Rc1 {[%clk 0:02:58.1]} 10... Qg6 {[%clk 0:02:42.5]} 11. a3
{[%clk 0:02:47.7]} 11... Bxc3+ {[%clk 0:02:36.5]} 12. bxc3 {[%clk 0:02:48.6]}
12... a6 {[%clk 0:02:24.9]} 13. Qc2 {[%clk 0:02:48.6]} 13... Bf5 {[%clk
0:02:24.2]} 14. Qb3 {[%clk 0:02:46.8]} 14... Be4 {[%clk 0:02:12.4]} 15. Nd2
{[%clk 0:02:36.8]} 15... Qd6 {[%clk 0:01:50.6]} 16. Nxe4 {[%clk 0:02:34.3]}
16... dxe4 {[%clk 0:01:51.5]} 17. Be2 {[%clk 0:02:27.1]} 17... Rab8 {[%clk
0:01:43.1]} 18. c4 {[%clk 0:02:25.5]} 18... Ne7 {[%clk 0:01:41]} 19. O-O {[%clk
0:02:18.1]} 19... c5 {[%clk 0:01:40.8]} 20. Rfd1 {[%clk 0:02:18.7]} 20... Rfd8
{[%clk 0:01:26.9]} 21. h3 {[%clk 0:02:13.7]} 21... Nc6 {[%clk 0:01:21.9]} 22.
dxc5 {[%clk 0:02:12.7]} 22... Qxc5 {[%clk 0:01:22.8]} 23. Rxd8+ {[%clk
0:02:10.6]} 23... Nxd8 {[%clk 0:01:16.4]} 24. Rd1 {[%clk 0:02:10.2]} 24... Ne6
{[%clk 0:01:11.3]} 25. Rd5 {[%clk 0:02:06.6]} 25... Qc6 {[%clk 0:01:11]} 26. Qb4
{[%clk 0:02:04.7]} 26... b6 {[%clk 0:01:02.2]} 27. Bg4 {[%clk 0:02:01.8]} 27...
Nc5 {[%clk 0:00:59.6]} 28. Qd2 {[%clk 0:01:56.7]} 28... Qc7 {[%clk 0:00:54.3]}
29. Qd4 {[%clk 0:01:51.8]} 29... Re8 {[%clk 0:00:49.8]} 30. Rd6 {[%clk
0:01:45.4]} 30... Ne6 {[%clk 0:00:18.8]} 31. Bxe6 {[%clk 0:01:44]} 31... Rxe6
{[%clk 0:00:19.7]} 32. Rxe6 {[%clk 0:01:41.1]} 32... fxe6 {[%clk 0:00:20.6]} 33.
Qxe4 {[%clk 0:01:41.7]} 33... Kf7 {[%clk 0:00:16.8]} 34. f4 {[%clk 0:01:38.6]}
34... a5 {[%clk 0:00:15.7]} 35. Qd4 {[%clk 0:01:37.1]} 35... Qc6 {[%clk
0:00:14.2]} 36. Kh2 {[%clk 0:01:36.8]} 36... Kg8 {[%clk 0:00:12.2]} 37. Kg3
{[%clk 0:01:32.2]} 37... b5 {[%clk 0:00:10.6]} 38. cxb5 {[%clk 0:01:30.7]} 38...
Qxb5 {[%clk 0:00:11.5]} 39. a4 {[%clk 0:01:25.3]} 39... Qa6 {[%clk 0:00:05.8]}
40. Qc5 {[%clk 0:01:21]} 40... Kf7 {[%clk 0:00:05.4]} 41. Kf3 {[%clk 0:01:18.8]}
41... Qb7+ {[%clk 0:00:04.9]} 42. Kf2 {[%clk 0:01:14.8]} 42... Qb2+ {[%clk
0:00:04.1]} 43. Kg3 {[%clk 0:01:15.2]} 43... Qe2 {[%clk 0:00:02]} 44. Qc3 {[%clk
0:01:12.5]} 44... Kf8 {[%clk 0:00:01.7]} 45. Kh2 {[%clk 0:01:09.6]} 45... Kg8
{[%clk 0:00:01.7]} 46. Qxa5 {[%clk 0:01:09.5]} 46... Qxe3 {[%clk 0:00:01.8]} 47.
Qe5 {[%clk 0:01:10.2]} 47... Qb6 {[%clk 0:00:01.5]} 48. a5 {[%clk 0:01:10]}
48... Qa6 {[%clk 0:00:02]} 49. Qc7 {[%clk 0:01:09.7]} 49... Kh7 {[%clk 0:00:02]}
50. Qb6 {[%clk 0:01:08.5]} 50... Qc4 {[%clk 0:00:02.3]} 51. Qe3 {[%clk
0:01:08.5]} 51... Qb5 {[%clk 0:00:01.4]} 52. Qe4+ {[%clk 0:01:07.3]} 52... Kh8
{[%clk 0:00:01.9]} 53. Qa8+ {[%clk 0:01:05.7]} 53... Kh7 {[%clk 0:00:01.8]} 54.
a6 {[%clk 0:01:06.6]} 54... Qc4 {[%clk 0:00:01.1]} 55. a7 {[%clk 0:01:03.9]}
55... Qxf4+ {[%clk 0:00:01.1]} 56. g3 {[%clk 0:01:04.5]} 1-0

[Event "Early-Titled-Tuesday-Blitz-January-16-2024"]
[Site "Chess.com"]
[Date "2024.01.16"]
[Round "4"]
[White "Hamisandwich"]
[Black "bitter-cikolata"]
[Result "1/2-1/2"]
[WhiteElo "2715"]
[BlackElo "2554"]
[TimeControl "180+1"]
[EndTime "8:41:24 PST"]
[Termination "Game drawn by repetition"]

1. c3 {[%clk 0:03:00.9]} 1... e5 {[%clk 0:02:59.6]} 2. d4 {[%clk 0:03:00.1]}
2... exd4 {[%clk 0:02:59.8]} 3. cxd4 {[%clk 0:03:01]} 3... d5 {[%clk 0:03:00.5]}
4. Nf3 {[%clk 0:03:01.3]} 4... Nf6 {[%clk 0:03:01.1]} 5. Nc3 {[%clk 0:03:00.6]}
5... Be7 {[%clk 0:03:00.1]} 6. Bf4 {[%clk 0:03:00.4]} 6... O-O {[%clk
0:03:00.6]} 7. e3 {[%clk 0:03:00]} 7... c5 {[%clk 0:03:01.2]} 8. Rc1 {[%clk
0:02:49.4]} 8... cxd4 {[%clk 0:03:00.8]} 9. Nxd4 {[%clk 0:02:50.3]} 9... Nc6
{[%clk 0:03:01.3]} 10. Nxc6 {[%clk 0:02:46]} 10... bxc6 {[%clk 0:02:57.5]} 11.
Bd3 {[%clk 0:02:46.6]} 11... Bd6 {[%clk 0:02:56.1]} 12. Bxd6 {[%clk 0:02:36.4]}
12... Qxd6 {[%clk 0:02:57]} 13. h3 {[%clk 0:02:36.6]} 13... Rb8 {[%clk
0:02:55.7]} 14. b3 {[%clk 0:02:34.7]} 14... a5 {[%clk 0:02:38.9]} 15. O-O {[%clk
0:02:33.9]} 15... Re8 {[%clk 0:02:39]} 16. Na4 {[%clk 0:02:31.9]} 16... Ne4
{[%clk 0:02:31.4]} 17. Qc2 {[%clk 0:02:28.7]} 17... Bd7 {[%clk 0:02:25]} 18.
Rfd1 {[%clk 0:02:25.7]} 18... Qg6 {[%clk 0:02:18.8]} 19. Bxe4 {[%clk 0:02:06.4]}
19... Rxe4 {[%clk 0:02:10.6]} 20. Nc5 {[%clk 0:01:47.4]} 20... Bf5 {[%clk
0:01:38.8]} 21. Qe2 {[%clk 0:01:08.8]} 21... Bxh3 {[%clk 0:00:57.1]} 22. Qf3
{[%clk 0:01:08.8]} 22... Bxg2 {[%clk 0:00:51]} 23. Qg3 {[%clk 0:01:09.4]} 23...
Qxg3 {[%clk 0:00:50.3]} 24. fxg3 {[%clk 0:01:10.3]} 24... Bf3 {[%clk 0:00:50.9]}
25. Nxe4 {[%clk 0:01:00]} 25... Bxd1 {[%clk 0:00:50.8]} 26. Nd6 {[%clk
0:00:57.1]} 26... Bf3 {[%clk 0:00:36.6]} 27. Kf2 {[%clk 0:00:57.1]} 27... Be4
{[%clk 0:00:27.8]} 28. Rxc6 {[%clk 0:00:56.6]} 28... Ra8 {[%clk 0:00:12.3]} 29.
Nxe4 {[%clk 0:00:52.7]} 29... dxe4 {[%clk 0:00:12.2]} 30. Rc4 {[%clk 0:00:53.5]}
30... f5 {[%clk 0:00:11.6]} 31. Ra4 {[%clk 0:00:54.2]} 31... g6 {[%clk
0:00:08.4]} 32. g4 {[%clk 0:00:48.1]} 32... Kf7 {[%clk 0:00:03.8]} 33. gxf5
{[%clk 0:00:47.3]} 33... gxf5 {[%clk 0:00:04.7]} 34. b4 {[%clk 0:00:42.2]} 34...
Ke6 {[%clk 0:00:05.2]} 35. bxa5 {[%clk 0:00:38.8]} 35... Ra6 {[%clk 0:00:03.2]}
36. Kg3 {[%clk 0:00:38.1]} 36... Ke5 {[%clk 0:00:03.4]} 37. Ra3 {[%clk
0:00:36.8]} 37... Rg6+ {[%clk 0:00:03]} 38. Kh3 {[%clk 0:00:33.3]} 38... Ra6
{[%clk 0:00:03.9]} 39. Kg3 {[%clk 0:00:33.1]} 39... Rg6+ {[%clk 0:00:03.6]} 40.
Kh4 {[%clk 0:00:29.5]} 40... Ra6 {[%clk 0:00:04.5]} 41. Kg3 {[%clk 0:00:21.8]}
1/2-1/2

[Event "Early-Titled-Tuesday-Blitz-January-16-2024"]
[Site "Chess.com"]
[Date "2024.01.16"]
[Round "4"]
[White "Arystanner"]
[Black "crazy_but_lazy"]
[Result "1-0"]
[WhiteElo "2804"]
[BlackElo "2588"]
[TimeControl "180+1"]
[EndTime "8:41:25 PST"]
[Termination "Arystanner won by resignation"]

1. d4 {[%clk 0:03:00.9]} 1... Nf6 {[%clk 0:02:58.5]} 2. c4 {[%clk 0:03:01.3]}
2... g6 {[%clk 0:02:59.1]} 3. Nc3 {[%clk 0:03:01.7]} 3... Bg7 {[%clk 0:02:59.7]}
4. e4 {[%clk 0:03:02]} 4... d6 {[%clk 0:03:00.3]} 5. Nge2 {[%clk 0:03:02.4]}
5... O-O {[%clk 0:02:57.5]} 6. h3 {[%clk 0:03:02.6]} 6... c5 {[%clk 0:02:54.5]}
7. d5 {[%clk 0:03:02]} 7... e6 {[%clk 0:02:53.3]} 8. Ng3 {[%clk 0:03:02]} 8...
exd5 {[%clk 0:02:50.1]} 9. cxd5 {[%clk 0:03:02.7]} 9... h5 {[%clk 0:02:48.4]}
10. Bg5 {[%clk 0:02:59.7]} 10... a6 {[%clk 0:02:48.2]} 11. a4 {[%clk 0:02:59.5]}
11... Qb6 {[%clk 0:02:47.5]} 12. Qc2 {[%clk 0:02:45.9]} 12... Nh7 {[%clk
0:02:41.5]} 13. a5 {[%clk 0:02:25.2]} 13... Qc7 {[%clk 0:02:29.5]} 14. Be3
{[%clk 0:02:25.3]} 14... Nd7 {[%clk 0:02:25]} 15. Bc4 {[%clk 0:02:12.7]} 15...
h4 {[%clk 0:02:17.1]} 16. Nge2 {[%clk 0:02:12.1]} 16... Ne5 {[%clk 0:02:17.7]}
17. b3 {[%clk 0:02:05.9]} 17... f5 {[%clk 0:02:18.1]} 18. Rd1 {[%clk 0:01:49.9]}
18... Qxa5 {[%clk 0:02:05]} 19. O-O {[%clk 0:01:48.2]} 19... b5 {[%clk
0:01:43.3]} 20. Ra1 {[%clk 0:01:47.6]} 20... Qxa1 {[%clk 0:00:24.5]} 21. Rxa1
{[%clk 0:01:46.2]} 21... bxc4 {[%clk 0:00:25.3]} 22. bxc4 {[%clk 0:01:43.6]}
22... Nxc4 {[%clk 0:00:25.7]} 23. Bc1 {[%clk 0:01:37.4]} 23... Bd7 {[%clk
0:00:14.2]} 24. exf5 {[%clk 0:01:37]} 24... Bxf5 {[%clk 0:00:14]} 25. Qa4 {[%clk
0:01:37.2]} 25... Ne5 {[%clk 0:00:13.1]} 26. Qxh4 {[%clk 0:01:34.2]} 26... Nd3
{[%clk 0:00:10.6]} 27. Bh6 {[%clk 0:01:29.8]} 27... g5 {[%clk 0:00:05.2]} 28.
Qh5 {[%clk 0:01:13.2]} 28... Rae8 {[%clk 0:00:04.5]} 29. Bxg7 {[%clk 0:01:12.2]}
29... Kxg7 {[%clk 0:00:05.4]} 30. Rxa6 {[%clk 0:01:06.3]} 30... Bg6 {[%clk
0:00:06]} 31. Ra7+ {[%clk 0:00:55.9]} 31... Rf7 {[%clk 0:00:06.2]} 32. Rxf7+
{[%clk 0:00:56.5]} 32... Bxf7 {[%clk 0:00:07.1]} 33. Qg4 {[%clk 0:00:56.9]}
33... Ne5 {[%clk 0:00:05.7]} 34. Qg3 {[%clk 0:00:55.9]} 34... Bg6 {[%clk
0:00:05.2]} 35. h4 {[%clk 0:00:52.5]} 35... gxh4 {[%clk 0:00:05.8]} 36. Qxh4
{[%clk 0:00:53.4]} 36... Nf6 {[%clk 0:00:06.3]} 37. Nf4 {[%clk 0:00:52]} 37...
Rh8 {[%clk 0:00:05.7]} 38. Qg5 {[%clk 0:00:51.5]} 38... Kf7 {[%clk 0:00:04.5]}
39. Nxg6 {[%clk 0:00:48.8]} 39... Nxg6 {[%clk 0:00:05.4]} 40. Nb5 {[%clk
0:00:48.9]} 40... Rd8 {[%clk 0:00:02.3]} 41. Qf5 {[%clk 0:00:49.3]} 41... Ne5
{[%clk 0:00:02.4]} 42. Qe6+ {[%clk 0:00:49.6]} 42... Kg6 {[%clk 0:00:02.5]} 43.
Nxd6 {[%clk 0:00:49.7]} 43... Ra8 {[%clk 0:00:01.9]} 44. Qf5+ {[%clk 0:00:49.6]}
44... Kg7 {[%clk 0:00:02.1]} 45. Qg5+ {[%clk 0:00:48.3]} 45... Kh7 {[%clk
0:00:01.7]} 46. Qxe5 {[%clk 0:00:40.5]} 46... Ra1+ {[%clk 0:00:01.1]} 47. Qxa1
{[%clk 0:00:40.7]} 47... Ng4 {[%clk 0:00:01.6]} 1-0

[Event "Early-Titled-Tuesday-Blitz-January-16-2024"]
[Site "Chess.com"]
[Date "2024.01.16"]
[Round "4"]
[White "Sebastian"]
[Black "KnightmareJoker"]
[Result "1-0"]
[WhiteElo "2943"]
[BlackElo "2093"]
[TimeControl "180+1"]
[EndTime "8:41:27 PST"]
[Termination "Sebastian won by checkmate"]

1. e4 {[%clk 0:03:00.9]} 1... e5 {[%clk 0:03:00.3]} 2. Nf3 {[%clk 0:03:00.7]}
2... Nc6 {[%clk 0:03:00.9]} 3. Bb5 {[%clk 0:02:59.4]} 3... a6 {[%clk 0:03:01.2]}
4. Ba4 {[%clk 0:02:59.3]} 4... Nf6 {[%clk 0:03:01.4]} 5. O-O {[%clk 0:02:59.5]}
5... b5 {[%clk 0:03:01.7]} 6. Bb3 {[%clk 0:02:59.4]} 6... Bc5 {[%clk 0:03:02.4]}
7. c3 {[%clk 0:02:57.5]} 7... d6 {[%clk 0:03:02.8]} 8. d4 {[%clk 0:02:57.5]}
8... Bb6 {[%clk 0:03:03.5]} 9. Be3 {[%clk 0:02:58.1]} 9... Rb8 {[%clk
0:02:57.5]} 10. Nbd2 {[%clk 0:02:55.2]} 10... O-O {[%clk 0:02:50.5]} 11. Re1
{[%clk 0:02:55.5]} 11... Bg4 {[%clk 0:02:49]} 12. h3 {[%clk 0:02:54.9]} 12...
Bd7 {[%clk 0:02:37]} 13. a3 {[%clk 0:02:38]} 13... h6 {[%clk 0:02:33.4]} 14. Bc2
{[%clk 0:02:35.6]} 14... Re8 {[%clk 0:02:33.4]} 15. b4 {[%clk 0:02:30.6]} 15...
Qe7 {[%clk 0:02:04.5]} 16. Nf1 {[%clk 0:02:07.6]} 16... Nh5 {[%clk 0:01:55.9]}
17. Qd2 {[%clk 0:01:52.6]} 17... Qf6 {[%clk 0:01:50]} 18. N1h2 {[%clk 0:01:43]}
18... Nf4 {[%clk 0:01:35.7]} 19. Ng4 {[%clk 0:01:39.2]} 19... Bxg4 {[%clk
0:01:33.6]} 20. hxg4 {[%clk 0:01:40.1]} 20... Nd8 {[%clk 0:01:15.3]} 21. g3
{[%clk 0:01:32.3]} 21... Ng6 {[%clk 0:01:12.8]} 22. g5 {[%clk 0:01:23.3]} 22...
Qxf3 {[%clk 0:01:10.3]} 23. Bd1 {[%clk 0:01:21.4]} 23... Qxe4 {[%clk 0:01:08.7]}
24. Bc2 {[%clk 0:01:21]} 24... Qg4 {[%clk 0:01:04.7]} 25. Bd1 {[%clk 0:01:19.5]}
25... Qe6 {[%clk 0:00:59.1]} 26. Bc2 {[%clk 0:01:16.4]} 26... d5 {[%clk
0:00:54.1]} 27. gxh6 {[%clk 0:01:15]} 27... gxh6 {[%clk 0:00:52.7]} 28. Kg2
{[%clk 0:01:14]} 28... e4 {[%clk 0:00:47.6]} 29. Rh1 {[%clk 0:01:13.8]} 29...
Qg4 {[%clk 0:00:41.8]} 30. Bd1 {[%clk 0:01:08.3]} 30... Qf5 {[%clk 0:00:42]} 31.
Rh5 {[%clk 0:01:05]} 31... Qf6 {[%clk 0:00:34.5]} 32. Bg4 {[%clk 0:01:04.7]}
32... Ne6 {[%clk 0:00:33.8]} 33. Rah1 {[%clk 0:01:04]} 33... Ng7 {[%clk
0:00:22.6]} 34. Rxh6 {[%clk 0:01:00.5]} 34... Nf5 {[%clk 0:00:23.2]} 35. Bg5
{[%clk 0:00:55.8]} 35... Nxh6 {[%clk 0:00:18]} 36. Bxf6 {[%clk 0:00:55.3]} 36...
Nxg4 {[%clk 0:00:18.5]} 37. Bg5 {[%clk 0:00:50.5]} 37... e3 {[%clk 0:00:18.2]}
38. Qe2 {[%clk 0:00:39.3]} 38... f5 {[%clk 0:00:17.4]} 39. f3 {[%clk 0:00:38.3]}
39... Nf2 {[%clk 0:00:15.9]} 40. Rh5 {[%clk 0:00:36.1]} 40... Kg7 {[%clk
0:00:15.1]} 41. Bxe3 {[%clk 0:00:35.6]} 41... f4 {[%clk 0:00:15.2]} 42. Kxf2
{[%clk 0:00:26.7]} 42... Rxe3 {[%clk 0:00:14]} 43. Qc2 {[%clk 0:00:26.9]} 43...
Rbe8 {[%clk 0:00:13.5]} 44. Rg5 {[%clk 0:00:25.9]} 44... fxg3+ {[%clk
0:00:13.4]} 45. Kxg3 {[%clk 0:00:25.5]} 45... c6 {[%clk 0:00:12.2]} 46. Qxg6+
{[%clk 0:00:24.7]} 46... Kf8 {[%clk 0:00:12.5]} 47. Qg7# {[%clk 0:00:24.8]} 1-0

[Event "Early-Titled-Tuesday-Blitz-January-16-2024"]
[Site "Chess.com"]
[Date "2024.01.16"]
[Round "4"]
[White "jcibarra"]
[Black "bazar-wokzal"]
[Result "1-0"]
[WhiteElo "2864"]
[BlackElo "2606"]
[TimeControl "180+1"]
[EndTime "8:41:28 PST"]
[Termination "jcibarra won on time"]

1. e4 {[%clk 0:03:00.9]} 1... c5 {[%clk 0:02:59.3]} 2. Nf3 {[%clk 0:03:01]} 2...
d6 {[%clk 0:02:59.3]} 3. d4 {[%clk 0:03:01]} 3... cxd4 {[%clk 0:03:00.2]} 4.
Nxd4 {[%clk 0:03:01.5]} 4... Nf6 {[%clk 0:03:00.6]} 5. Nc3 {[%clk 0:03:01.9]}
5... a6 {[%clk 0:03:00.7]} 6. g3 {[%clk 0:03:02.1]} 6... g6 {[%clk 0:02:59.9]}
7. Bg2 {[%clk 0:03:01.6]} 7... Bg7 {[%clk 0:03:00.3]} 8. O-O {[%clk 0:03:01.7]}
8... O-O {[%clk 0:03:00.6]} 9. h3 {[%clk 0:03:01.5]} 9... Nc6 {[%clk 0:03:00]}
10. Nde2 {[%clk 0:03:01.6]} 10... Rb8 {[%clk 0:02:56.5]} 11. Nd5 {[%clk
0:02:51.4]} 11... b5 {[%clk 0:02:42.8]} 12. Bg5 {[%clk 0:02:39.5]} 12... Nxd5
{[%clk 0:02:41.8]} 13. exd5 {[%clk 0:02:38.7]} 13... Ne5 {[%clk 0:02:41.5]} 14.
Nd4 {[%clk 0:02:36.6]} 14... Bb7 {[%clk 0:02:32.3]} 15. Re1 {[%clk 0:02:29.3]}
15... Re8 {[%clk 0:02:28.4]} 16. c3 {[%clk 0:02:20.1]} 16... Rc8 {[%clk
0:02:14.9]} 17. a4 {[%clk 0:02:15.8]} 17... bxa4 {[%clk 0:02:10.1]} 18. Qxa4
{[%clk 0:02:13.2]} 18... Nc4 {[%clk 0:02:05.9]} 19. Re2 {[%clk 0:01:54.8]} 19...
Bxd4 {[%clk 0:01:54.2]} 20. cxd4 {[%clk 0:01:53]} 20... Nb6 {[%clk 0:01:27.4]}
21. Qb3 {[%clk 0:01:51.4]} 21... Rb8 {[%clk 0:01:23.2]} 22. Rae1 {[%clk
0:01:44.6]} 22... Nc8 {[%clk 0:01:12.8]} 23. h4 {[%clk 0:01:35.4]} 23... Qa5
{[%clk 0:01:04.8]} 24. h5 {[%clk 0:01:23.4]} 24... Nb6 {[%clk 0:01:00.2]} 25.
Rxe7 {[%clk 0:01:11.4]} 25... Rxe7 {[%clk 0:00:59.3]} 26. Rxe7 {[%clk
0:01:09.7]} 26... Bxd5 {[%clk 0:00:51.2]} 27. Bxd5 {[%clk 0:01:05.6]} 27... Qxd5
{[%clk 0:00:51.2]} 28. Qxb6 {[%clk 0:00:54.2]} 28... Rc8 {[%clk 0:00:17.9]} 29.
Qc7 {[%clk 0:00:38.4]} 29... Rf8 {[%clk 0:00:07]} 30. Bh6 {[%clk 0:00:34.1]}
30... Qxd4 {[%clk 0:00:03]} 31. Bxf8 {[%clk 0:00:25.7]} 31... Qd1+ {[%clk
0:00:02.9]} 32. Kg2 {[%clk 0:00:25.2]} 32... Qd5+ {[%clk 0:00:02.9]} 33. f3
{[%clk 0:00:23.3]} 33... Qd2+ {[%clk 0:00:02.1]} 34. Kh3 {[%clk 0:00:21]} 34...
Qd1 {[%clk 0:00:02.4]} 35. Qc3 {[%clk 0:00:12]} 35... Qh1+ {[%clk 0:00:02.2]}
36. Kg4 {[%clk 0:00:12.7]} 36... Qxh5+ {[%clk 0:00:02]} 37. Kf4 {[%clk
0:00:13.3]} 1-0

[Event "Early-Titled-Tuesday-Blitz-January-16-2024"]
[Site "Chess.com"]
[Date "2024.01.16"]
[Round "4"]
[White "LoScecco"]
[Black "jup1978"]
[Result "0-1"]
[WhiteElo "2199"]
[BlackElo "2467"]
[TimeControl "180+1"]
[EndTime "8:41:29 PST"]
[Termination "jup1978 won on time"]

1. c4 {[%clk 0:03:00.9]} 1... e5 {[%clk 0:02:58.9]} 2. g3 {[%clk 0:03:00]} 2...
Nf6 {[%clk 0:02:58.1]} 3. Bg2 {[%clk 0:02:59.6]} 3... c6 {[%clk 0:02:58.2]} 4.
d4 {[%clk 0:02:58]} 4... Bb4+ {[%clk 0:02:58.7]} 5. Bd2 {[%clk 0:02:55.5]} 5...
Bxd2+ {[%clk 0:02:59]} 6. Qxd2 {[%clk 0:02:53.6]} 6... d6 {[%clk 0:02:59.9]} 7.
Nc3 {[%clk 0:02:49.9]} 7... O-O {[%clk 0:02:58.2]} 8. Nf3 {[%clk 0:02:30]} 8...
e4 {[%clk 0:02:50.9]} 9. Ng5 {[%clk 0:02:29.5]} 9... d5 {[%clk 0:02:51.5]} 10.
cxd5 {[%clk 0:02:28.5]} 10... cxd5 {[%clk 0:02:52.4]} 11. Nh3 {[%clk 0:02:24.8]}
11... Bf5 {[%clk 0:02:49.2]} 12. f3 {[%clk 0:01:50.9]} 12... exf3 {[%clk
0:02:42.5]} 13. exf3 {[%clk 0:01:50.2]} 13... Re8+ {[%clk 0:02:30.5]} 14. Kf2
{[%clk 0:01:44.5]} 14... Nc6 {[%clk 0:02:29.4]} 15. Rhe1 {[%clk 0:01:38.6]}
15... Qb6 {[%clk 0:02:29]} 16. Rad1 {[%clk 0:01:13.1]} 16... h6 {[%clk
0:02:12.8]} 17. Nf4 {[%clk 0:01:10.3]} 17... Rxe1 {[%clk 0:02:02.9]} 18. Kxe1
{[%clk 0:01:09.5]} 18... Re8+ {[%clk 0:02:01.8]} 19. Kf1 {[%clk 0:01:04.3]}
19... Be6 {[%clk 0:01:42.9]} 20. Kg1 {[%clk 0:00:48.3]} 20... g5 {[%clk
0:01:27.7]} 21. Nfe2 {[%clk 0:00:47.2]} 21... Bf5 {[%clk 0:01:21.1]} 22. g4
{[%clk 0:00:41.2]} 22... Bg6 {[%clk 0:01:20.4]} 23. h4 {[%clk 0:00:39.3]} 23...
gxh4 {[%clk 0:01:10]} 24. Qxh6 {[%clk 0:00:38.6]} 24... Qxb2 {[%clk 0:01:10]}
25. Rd2 {[%clk 0:00:37.4]} 25... Qb4 {[%clk 0:00:56.7]} 26. Qxh4 {[%clk
0:00:33.3]} 26... Kg7 {[%clk 0:00:56.2]} 27. g5 {[%clk 0:00:31.6]} 27... Nh5
{[%clk 0:00:52.6]} 28. Qf2 {[%clk 0:00:28.7]} 28... Qe7 {[%clk 0:00:47.2]} 29.
f4 {[%clk 0:00:27.8]} 29... Be4 {[%clk 0:00:43.7]} 30. Bxe4 {[%clk 0:00:20.8]}
30... dxe4 {[%clk 0:00:44.6]} 31. d5 {[%clk 0:00:21]} 31... e3 {[%clk
0:00:39.2]} 32. Qh4 {[%clk 0:00:20.8]} 32... exd2 {[%clk 0:00:36.8]} 33. Qxh5
{[%clk 0:00:21.4]} 33... Qxe2 {[%clk 0:00:34.9]} 34. Qh6+ {[%clk 0:00:19.2]}
34... Kg8 {[%clk 0:00:33.9]} 35. g6 {[%clk 0:00:14.1]} 35... d1=Q+ {[%clk
0:00:32]} 36. Nxd1 {[%clk 0:00:13.8]} 36... Qxd1+ {[%clk 0:00:32.6]} 37. Kh2
{[%clk 0:00:14.4]} 37... Re2+ {[%clk 0:00:31.8]} 38. Kg3 {[%clk 0:00:14]} 38...
Qg1+ {[%clk 0:00:27.7]} 39. Kf3 {[%clk 0:00:13.5]} 39... Qf1+ {[%clk 0:00:26.8]}
40. Kg4 {[%clk 0:00:03.2]} 40... Rg2+ {[%clk 0:00:25.9]} 41. Kf5 {[%clk
0:00:03.1]} 41... Qd3+ {[%clk 0:00:23.4]} 42. Kf6 {[%clk 0:00:01.9]} 42... Rxg6+
{[%clk 0:00:22.7]} 0-1